[Event "EWIRCC 2019"]
[Site "Monte-Carlo"]
[Date "2019.11.30"]
[Round "4.17"]
[White "Arakhamia-Grant, Ketevan"]
[Black "Semenova, Elena"]
[Result "1/2-1/2"]
[ECO "C88"]
[WhiteElo "2376"]
[BlackElo "2282"]
[Annotator "NA"]
[PlyCount "101"]
[EventDate "2019.11.28"]
[EventType "swiss"]
[EventCountry "MNC"]
[SourceTitle "playchess.com"]
[Source "ChessBase"]
[SourceQuality "1"]
[TimeControl "5400+30"]

1. e4 {[%emt 1:15:11]} e5 {[%emt 1:15:11]} 2. Nf3 {[%emt 0:00:22]} Nc6 {[%emt 0:00:21]} 3. Bb5 {[%emt 0:00:22]} a6 {[%emt 0:00:22]} 4. Ba4 {[%emt 0:00:21]} Nf6 {[%emt 0:00:23]} 5. O-O {[%emt 0:00:25]} Be7 {[%emt 0:00:22]} 6. Re1 {[%emt 0:00:29]} b5 {[%emt 0:00:22]} 7. Bb3 {[%emt 0:00:21]} O-O {[%emt 0:00:23]} 8. a4 {[%emt 0:00:29]} b4 {[%emt 0:01:12]} 9. d3 {[%emt 0:00:32]} d6 {[%emt 0:00:51]} 10. h3 {[%emt 0:00:24]} Na5 {[%emt 0:00:34]} 11. Ba2 {[%emt 0:00:25]} b3 {[%emt 0:00:37]} 12. cxb3 {[%emt 0:01:52]} c5 {[%emt 0:01:06]} 13. b4 {[%emt 0:00:37]} cxb4 {[%emt 0:00:37]} 14. Nbd2 {[%emt 0:00:21]} Bb7 {[%emt 0:04:05]} 15. d4 {[%emt 0:01:03]} Qc7 {[%emt 0:01:52]} 16. d5 {[%emt 0:03:45]} Nd7 {[%emt 0:01:02]} 17. Nf1 {[%emt 0:00:53]} Nc5 {[%emt 0:01:20]} 18. Ng3 {[%emt 0:00:49]} Bc8 {[%emt 0:00:27]} 19. Be3 {[%emt 0:01:12]} b3 {[%emt 0:00:45]} 20. Bxc5 {[%emt 0:03:55]} Qxc5 {[%emt 0:00:21]} 21. Bxb3 {[%emt 0:00:21]} Rb8 {[%emt 0:00:32]} 22. Rc1 {[%emt 0:00:37]} Qb4 {[%emt 0:01:02]} 23. Bc2 {[%emt 0:00:39]} Bd7 {[%emt 0:00:40]} 24. Nf5 {[%emt 0:02:19]} Bf6 {[%emt 0:00:22]} 25. Qd3 {[%emt 0:02:44]} Rb6 {[%emt 0:02:06]} 26. g4 {[%emt 0:01:08]} g6 {[%emt 0:00:33]} 27. Ne3 {[%emt 0:00:49]} Rfb8 {[%emt 0:01:11]} 28. Rb1 {[%emt 0:01:17]} Nb3 {[%emt 0:00:40]} 29. Bxb3 {[%emt 0:00:33]} Qxb3 {[%emt 0:00:21]} 30. Qxb3 {[%emt 0:00:29]} Rxb3 {[%emt 0:00:22]} 31. Nd2 {[%emt 0:00:23]} Rxb2 {[%emt 0:02:07]} 32. Rxb2 {[%emt 0:00:22]} Rxb2 {[%emt 0:00:21]} 33. Ndc4 {[%emt 0:00:20]} Rb4 {[%emt 0:00:33]} 34. a5 {[%emt 0:00:22]} Be7 {[%emt 0:01:08]} 35. Rc1 {[%emt 0:00:21]} Bb5 {[%emt 0:00:27]} 36. Kg2 {[%emt 0:00:41]} Ra4 {[%emt 0:00:23]} 37. Kf3 {[%emt 0:00:39]} Kf8 {[%emt 0:00:21]} 38. Kg3 {[%emt 0:00:42]} Ra2 {[%emt 0:02:05]} 39. h4 {[%emt 0:00:22]} Ra4 {[%emt 0:00:29]} 40. g5 {[%emt 0:00:22]} Kg7 {[%emt 0:00:35]} 41. f3 {[%emt 0:00:49]} f6 {[%emt 0:00:21]} 42. gxf6+ {[%emt 0:00:23]} Kxf6 {[%emt 0:00:21]} 43. Ng4+ {[%emt 0:00:35]} Kf7 {[%emt 0:00:21]} 44. Nb6 {[%emt 0:00:28]} Rxa5 {[%emt 0:00:30]} 45. Rc7 {[%emt 0:00:21]} Ke8 {[%emt 0:00:34]} 46. Rc8+ {[%emt 0:00:29]} Kf7 {[%emt 0:00:40]} 47. Rc7 {[%emt 0:00:40]} Ke8 {[%emt 0:00:52]} 48. Rc8+ {[%emt 0:00:22]} Kf7 {[%emt 0:00:48]} 49. Rc7 {[%emt 0:00:25]} Ke8 {[%emt 0:00:41]} 50. Rc8+ {[%emt 0:00:53]} Kf7 {[%emt 0:00:22]} 51. Rc7 {[%emt 0:00:20]} 1/2-1/2

[Event "EWIRCC 2019"]
[Site "Monte-Carlo"]
[Date "2019.11.30"]
[Round "4.18"]
[White "Zvereva, Marija"]
[Black "Osmak, Iulija"]
[Result "0-1"]
[ECO "C00"]
[WhiteElo "2154"]
[BlackElo "2401"]
[Annotator "NA"]
[PlyCount "62"]
[EventDate "2019.11.28"]
[EventType "swiss"]
[EventCountry "MNC"]
[SourceTitle "playchess.com"]
[Source "ChessBase"]
[SourceQuality "1"]
[TimeControl "5400+30"]

1. e4 {[%emt 1:15:12]} e6 {[%emt 1:15:10]} 2. d3 {[%emt 0:00:23]} d5 {[%emt 0:00:22]} 3. Nd2 {[%emt 0:00:21]} Nf6 {[%emt 0:00:25]} 4. Ngf3 {[%emt 0:00:23]} Bc5 {[%emt 0:00:30]} 5. g3 {[%emt 0:01:26]} dxe4 {[%emt 0:00:26]} 6. Ne5 {[%emt 0:03:11]} Qd4 {[%emt 0:03:46]} 7. Ng4 {[%emt 0:01:56]} Nxg4 {[%emt 0:00:41]} 8. Qxg4 {[%emt 0:00:23]} e3 {[%emt 0:00:54]} 9. Ne4 {[%emt 0:01:07]} exf2+ {[%emt 0:00:35]} 10. Ke2 {[%emt 0:00:29]} f5 {[%emt 0:00:38]} 11. c3 {[%emt 0:00:43]} Qxe4+ {[%emt 0:00:38]} 12. Qxe4 {[%emt 0:00:51]} fxe4 {[%emt 0:00:21]} 13. d4 {[%emt 0:00:29]} Bd6 {[%emt 0:00:25]} 14. Kxf2 {[%emt 0:02:27]} Nd7 {[%emt 0:00:24]} 15. Bc4 {[%emt 0:01:15]} Nf6 {[%emt 0:00:28]} 16. Re1 {[%emt 0:00:45]} Bd7 {[%emt 0:00:41]} 17. Bg5 {[%emt 0:01:03]} Rf8 {[%emt 0:00:40]} 18. Kg1 {[%emt 0:00:30]} O-O-O {[%emt 0:00:36]} 19. a4 {[%emt 0:00:44]} e5 {[%emt 0:00:30]} 20. d5 {[%emt 0:00:29]} Bg4 {[%emt 0:01:00]} 21. b4 {[%emt 0:00:48]} Bf3 {[%emt 0:00:23]} 22. a5 {[%emt 0:00:27]} Be7 {[%emt 0:00:29]} 23. Be3 {[%emt 0:00:27]} Kb8 {[%emt 0:00:46]} 24. b5 {[%emt 0:01:25]} Nxd5 {[%emt 0:00:23]} 25. Bxd5 {[%emt 0:00:33]} Rxd5 {[%emt 0:00:21]} 26. b6 {[%emt 0:00:22]} cxb6 {[%emt 0:00:41]} 27. axb6 {[%emt 0:00:27]} axb6 {[%emt 0:00:41]} 28. c4 {[%emt 0:00:26]} Rd3 {[%emt 0:00:49]} 29. Bxb6 {[%emt 0:00:26]} Rd2 {[%emt 0:00:24]} 30. Ba7+ {[%emt 0:00:51]} Kc7 {[%emt 0:00:24]} 31. Bf2 {[%emt 0:00:22]} Rxf2 {[%emt 0:01:57]} 0-1